bitfinex/quotes_BTCUSD_20250218
["timestamp","ask_amount","ask_price","bid_price","bid_amount"]
[1739908048963,0.04592631,94434.0,94433.0,0.02007]
[1739908049143,0.04470917,94434.0,94433.0,0.02007]
[1739908049405,0.04592658,94434.0,94433.0,0.02007]
[1739908049626,0.04592658,94434.0,94424.0,0.023]
[1739908049627,0.04592658,94434.0,94431.0,0.01407]
[1739908049938,0.04592658,94434.0,94433.0,0.006]
[1739908050467,0.04592658,94434.0,94433.0,0.000446]
[1739908050684,0.22704779,94443.0,94423.0,0.005]
[1739908050887,0.0011763,94434.0,94423.0,0.01907]
[1739908051088,0.22717948,94443.0,94423.0,0.01907]
[1739908051297,0.00117735,94442.0,94423.0,0.005]
[1739908051620,0.22704779,94433.0,94431.0,0.006]
[1739908051782,0.02168138,94434.0,94423.0,0.005]
[1739908051982,0.00117604,94432.0,94423.0,0.006843]
[1739908052181,0.22822396,94433.0,94423.0,0.006843]
[1739908052497,0.00117415,94432.0,94423.0,0.004843]
[1739908053058,0.00117415,94432.0,94396.0,0.05740621]
[1739908053059,0.22704779,94417.0,94409.0,0.01407]
[1739908053266,0.22704779,94419.0,94406.0,0.01407]
[1739908053468,0.00117064,94416.0,94406.0,0.01407]
[1739908053619,0.00117196,94418.0,94417.0,0.01407]
[1739908053827,0.0001698,94434.0,94421.0,0.01407]
[1739908054011,0.0001698,94434.0,94423.0,0.01407]
[1739908054422,0.00789637,94428.0,94423.0,0.01407]
[1739908055044,0.0001698,94434.0,94423.0,0.01407]
[1739908056004,0.0001698,94434.0,94423.0,0.01607]
[1739908056345,0.0001698,94434.0,94424.0,0.009557]
[1739908057120,0.0001698,94434.0,94423.0,0.01407]
[1739908057528,0.0001698,94434.0,94426.0,0.01407]
[1739908057732,0.0001698,94434.0,94433.0,0.01407]
[1739908058448,0.00127793,94434.0,94433.0,0.01407]
[1739908058744,0.00127876,94434.0,94433.0,0.03707]
[1739908058969,0.0001698,94434.0,94433.0,0.11767]
[1739908059170,0.0001698,94434.0,94433.0,0.09467]
[1739908059373,0.0001698,94434.0,94433.0,0.09767]
[1739908059573,0.0001698,94434.0,94433.0,0.09467]
[1739908059975,0.0001698,94434.0,94433.0,0.104137]
[1739908060383,0.0001698,94434.0,94433.0,0.127137]
[1739908060972,0.0001698,94434.0,94433.0,0.130137]
[1739908062496,0.0001698,94434.0,94433.0,0.1311958]
[1739908062695,0.0001698,94434.0,94433.0,0.2811958]
[1739908062909,0.0001698,94434.0,94433.0,0.280137]
[1739908063111,0.0001698,94434.0,94433.0,0.325437]
[1739908063913,0.0001698,94434.0,94433.0,0.322437]
[1739908064146,0.0001698,94434.0,94433.0,0.324437]
[1739908064575,0.0001698,94434.0,94433.0,0.322437]
[1739908064775,0.22704779,94470.0,94434.0,0.173]
[1739908064982,0.22704779,94470.0,94442.0,0.023]
[1739908065192,0.00111101,94469.0,94443.0,0.00105871]
[1739908065396,0.1501698,94498.0,94459.0,0.01407]
[1739908065397,0.04358482,94470.0,94459.0,0.01407]
[1739908065597,0.22704779,94490.0,94460.0,0.01407]
[1739908065751,1.9404,94488.0,94460.0,0.01407]
[1739908066094,0.020708,94483.0,94465.0,0.01400787]
[1739908066297,0.00107409,94487.0,94476.0,0.01400787]
[1739908066557,0.00107343,94482.0,94476.0,0.01400787]
[1739908066719,0.00788973,94477.0,94476.0,0.01400787]
[1739908067090,0.0089629,94477.0,94476.0,0.01300787]
[1739908067303,0.00116701,94477.0,94476.0,0.01300787]
[1739908067510,0.00013164,94477.0,94476.0,0.01300787]
[1739908068749,0.00013164,94477.0,94476.0,0.01400787]
[1739908068952,0.00013164,94477.0,94476.0,0.01300787]
[1739908069272,0.00116588,94477.0,94476.0,0.03600787]
[1739908069471,0.00013164,94477.0,94476.0,0.03600787]
[1739908070160,0.00013164,94477.0,94476.0,0.16490787]
[1739908070355,0.00013164,94477.0,94476.0,0.33339866]
[1739908070562,0.00013164,94477.0,94476.0,0.33139866]
[1739908070785,0.00013164,94477.0,94476.0,0.33839866]
[1739908071164,0.00013164,94477.0,94476.0,0.33139866]
[1739908071510,0.00013164,94477.0,94476.0,0.18839866]
[1739908071714,0.00013164,94477.0,94476.0,0.18139866]
[1739908072139,0.00013164,94477.0,94476.0,0.18839866]
[1739908072543,0.00013164,94477.0,94476.0,0.17539079]
[1739908072748,0.00013164,94477.0,94476.0,0.18839866]
[1739908073560,0.00013164,94477.0,94476.0,0.34822696]
[1739908073763,0.00013164,94477.0,94476.0,0.49716866]
[1739908073980,0.005,94500.0,94497.0,0.32174287]
[1739908074183,0.005,94500.0,94497.0,0.50521716]
[1739908074388,0.005,94500.0,94499.0,0.40173887]
[1739908074591,0.22704779,94570.0,94511.0,0.47251887]
[1739908074797,0.0711698,94572.0,94511.0,0.47251887]
[1739908074798,0.00030142,94512.0,94511.0,0.31380787]
[1739908075004,0.00030142,94512.0,94511.0,0.37905199]
[1739908077162,0.00030142,94512.0,94511.0,0.38605199]
[1739908078100,0.00030142,94512.0,94511.0,0.37905199]
[1739908078935,0.00030142,94512.0,94511.0,0.38605199]
[1739908079972,0.00030142,94512.0,94511.0,0.17080787]
[1739908080218,0.00030142,94512.0,94511.0,0.51049907]
[1739908080392,0.00030142,94512.0,94511.0,0.65944117]
[1739908081073,0.03877675,94538.0,94513.0,0.023]
[1739908081277,0.03877675,94538.0,94515.0,0.023]
[1739908081278,0.00043864,94538.0,94515.0,0.023]
[1739908081480,0.00043864,94538.0,94532.0,0.01250787]
[1739908081686,0.00043864,94538.0,94513.0,0.08463325]
[1739908081687,0.04394467,94538.0,94528.0,0.01250787]
[1739908081887,0.00043864,94538.0,94528.0,0.01250787]
[1739908082113,0.00102236,94537.0,94528.0,0.01250787]
[1739908082316,0.00043864,94538.0,94533.0,0.01250787]
[1739908082485,0.00043864,94538.0,94514.0,0.00105788]
[1739908082486,0.00043864,94538.0,94536.0,0.01250787]
[1739908082691,0.00043864,94538.0,94537.0,0.0365655]
[1739908082692,0.04415147,94538.0,94537.0,0.0365655]
[1739908082866,0.00043864,94538.0,94537.0,0.15980787]
[1739908083094,0.00043864,94538.0,94537.0,0.46847587]
[1739908083304,0.00146415,94538.0,94537.0,0.53647956]
[1739908083546,0.0001698,94572.0,94543.0,0.16250787]
[1739908083750,0.00020151,94544.0,94543.0,0.26256534]
[1739908083948,0.00020151,94544.0,94543.0,0.36401152]
[1739908084755,0.10223607,94567.0,94566.0,0.01250787]
[1739908085161,0.10326644,94567.0,94566.0,0.01250787]
[1739908086599,0.10326644,94567.0,94547.0,0.15]
[1739908086836,0.22704779,94560.0,94554.0,0.01250787]
[1739908087044,0.10326644,94567.0,94547.0,0.01250787]
[1739908087251,0.10326644,94567.0,94543.0,0.007]
[1739908087252,0.22704779,94557.0,94543.0,0.007]
[1739908087459,0.071,94556.0,94526.0,0.01250787]
[1739908087665,0.02938933,94563.0,94538.0,0.01250787]
[1739908087923,0.00103067,94556.0,94538.0,0.01250787]
[1739908088156,0.00103067,94556.0,94524.0,0.00773518]
[1739908088157,0.00813216,94563.0,94550.0,0.01250787]
[1739908088359,0.00102752,94555.0,94550.0,0.01250787]
[1739908088567,0.00813216,94563.0,94550.0,0.01250787]
[1739908088770,0.00813216,94563.0,94534.0,0.075]
[1739908088771,0.10223607,94567.0,94554.0,0.01250787]
[1739908088977,0.00102805,94562.0,94559.0,0.01250787]
[1739908089206,0.002,94563.0,94559.0,0.01250787]
[1739908089412,0.10223607,94567.0,94566.0,0.01250787]
[1739908089622,0.1021432,94567.0,94566.0,0.01250787]
[1739908091217,0.1021432,94567.0,94566.0,0.01550787]
[1739908091394,0.1021432,94567.0,94566.0,0.01250787]
[1739908091827,0.1021432,94567.0,94566.0,0.003]
[1739908092106,0.1021432,94567.0,94566.0,0.01250787]
[1739908092305,0.1021432,94567.0,94566.0,0.01450787]
[1739908093544,0.1021432,94567.0,94566.0,0.01250787]
[1739908093746,0.1021432,94567.0,94566.0,0.01550787]
[1739908094040,0.1021432,94567.0,94566.0,0.003]
[1739908094496,0.1021432,94567.0,94566.0,0.006]
[1739908094706,0.1021432,94567.0,94560.0,0.01250787]
[1739908094914,0.1021432,94567.0,94560.0,0.206]
[1739908095118,0.1021432,94567.0,94566.0,0.003]
[1739908095936,0.1021432,94567.0,94562.0,0.01250787]
[1739908096071,0.1021432,94567.0,94566.0,0.01250787]
[1739908097069,0.1021432,94567.0,94566.0,0.01550787]
[1739908097478,0.1021432,94567.0,94566.0,0.03550787]
[1739908097676,0.1021432,94567.0,94566.0,0.07485404]
[1739908097883,0.1021432,94567.0,94565.0,0.01250787]
[1739908098278,0.1021432,94567.0,94566.0,0.004]
[1739908098661,0.1021432,94567.0,94563.0,0.01250787]
[1739908098888,0.1021432,94567.0,94566.0,0.006]
[1739908100075,0.1021432,94567.0,94560.0,0.21850787]
[1739908100493,0.1021432,94567.0,94566.0,0.002]
[1739908100845,0.1021432,94567.0,94566.0,0.01450787]
[1739908101047,0.1021432,94567.0,94566.0,0.002]
[1739908101247,0.1021432,94567.0,94566.0,0.01250787]
[1739908101446,0.1021432,94567.0,94566.0,0.01284687]
[1739908101848,0.1021432,94567.0,94566.0,0.09424687]
[1739908102081,0.1021432,94567.0,94566.0,0.13473121]
[1739908102280,0.1021432,94567.0,94566.0,0.09624687]
[1739908103375,0.1021432,94567.0,94566.0,0.09424687]
[1739908103541,0.1021432,94567.0,94566.0,0.26724687]
[1739908103752,0.53412,94623.0,94568.0,0.32112387]
[1739908103916,0.53412,94623.0,94568.0,0.32154331]
[1739908104118,0.00965362,94610.0,94568.0,0.32154331]
[1739908104329,0.00166563,94610.0,94568.0,0.60566296]
[1739908104734,0.00166563,94610.0,94568.0,0.62596209]
[1739908105271,0.00166563,94610.0,94568.0,0.63296209]
[1739908105520,0.0423099,94582.0,94568.0,0.63296209]
[1739908106556,0.0423099,94582.0,94568.0,0.46734609]
[1739908106687,0.00166563,94610.0,94568.0,0.46734609]
[1739908106894,0.05807748,94586.0,94568.0,0.37184244]
[1739908107090,0.05807748,94586.0,94568.0,0.12789913]
[1739908107300,0.05807748,94586.0,94568.0,0.12010787]
[1739908107726,0.05807748,94586.0,94568.0,0.01250787]
[1739908107903,0.22704779,94580.0,94566.0,0.000339]
[1739908108097,0.23483196,94580.0,94568.0,0.007]
[1739908108330,0.07068,94569.0,94568.0,0.01480037]
[1739908108487,0.07068,94569.0,94568.0,0.02180037]
[1739908109227,0.07184877,94569.0,94568.0,0.02180037]
[1739908109430,0.00136877,94569.0,94568.0,0.02180037]
[1739908109866,0.0002,94569.0,94568.0,0.01250787]
[1739908110458,0.0002,94569.0,94568.0,0.09570787]
[1739908110657,0.0002,94569.0,94568.0,0.2754183]
[1739908110814,0.0002,94569.0,94568.0,0.2704183]
[1739908111220,0.0002,94569.0,94568.0,0.26320056]
[1739908111418,0.0002,94569.0,94568.0,0.25820056]
[1739908112878,0.0002,94569.0,94568.0,0.27651739]
[1739908113091,0.0002,94569.0,94568.0,0.33071739]
[1739908113495,0.0002,94569.0,94568.0,0.32371739]
[1739908113693,0.0002,94569.0,94568.0,0.40304268]
[1739908113925,0.0002,94569.0,94568.0,0.39704268]
[1739908114140,0.0003702,94569.0,94568.0,0.39704268]
[1739908114343,0.0003702,94569.0,94568.0,0.66516233]
[1739908114455,0.0003702,94569.0,94568.0,0.65816233]
[1739908115064,0.0003702,94569.0,94568.0,0.49954633]
[1739908115259,0.0003702,94569.0,94568.0,0.39704268]
[1739908115673,0.0003702,94569.0,94568.0,0.31120952]
[1739908115893,0.0003702,94569.0,94568.0,0.30771739]
[1739908116344,0.0003702,94569.0,94568.0,0.15771739]
[1739908116549,0.0003702,94569.0,94568.0,0.02031739]
[1739908116892,0.0003702,94569.0,94568.0,0.03981072]
[1739908117742,0.0003702,94569.0,94568.0,0.02730285]
[1739908118496,0.17066274,94590.0,94568.0,0.007]
[1739908118709,0.00013149,94586.0,94568.0,0.007]
[1739908119341,0.00013149,94586.0,94566.0,0.000339]
[1739908119547,0.00013149,94586.0,94568.0,0.007]
[1739908119987,0.00013149,94586.0,94566.0,0.000339]
[1739908120598,0.00796074,94572.0,94566.0,0.000339]
[1739908122964,0.00796074,94572.0,94566.0,0.002339]
[1739908123139,0.00796074,94572.0,94566.0,0.000339]
[1739908123440,0.00796074,94572.0,94566.0,0.002339]
[1739908124211,0.00796074,94572.0,94566.0,0.000339]
[1739908124614,0.00796074,94572.0,94566.0,0.001339]
[1739908125299,0.00796074,94572.0,94555.0,0.01250787]
[1739908125473,0.34855641,94571.0,94555.0,0.01250787]
[1739908125894,0.00796074,94572.0,94555.0,0.01250787]
[1739908126493,0.00796074,94572.0,94560.0,0.202176]
[1739908126494,0.34855641,94570.0,94560.0,0.202176]
[1739908126669,4.71367172,94569.0,94560.0,0.18859132]
[1739908126870,3.6753,94568.0,94560.0,0.18859132]
[1739908127090,2.1147,94567.0,94566.0,0.0003404]
[1739908127295,0.34855641,94570.0,94566.0,0.0003404]
[1739908127696,0.34855641,94570.0,94560.0,0.18959132]
[1739908127965,0.42013515,94570.0,94560.0,0.18959132]
[1739908128336,0.02139669,94567.0,94560.0,0.18959132]
[1739908128968,5.05,94566.0,94560.0,0.1193831]
[1739908129167,0.3952,94565.0,94560.0,0.1193831]
[1739908129377,5.05,94564.0,94560.0,0.08756488]
[1739908129584,5.15250365,94564.0,94560.0,0.03656242]
[1739908129730,5.05,94563.0,94560.0,0.03656242]
[1739908129935,0.00749213,94561.0,94560.0,0.0047442]
[1739908130131,0.00807466,94538.0,94520.0,0.01250787]
[1739908130343,0.22621736,94536.0,94510.0,0.01250787]
[1739908130683,0.22621736,94530.0,94510.0,0.01250787]
[1739908131500,0.22621736,94530.0,94511.0,0.00077784]
[1739908132160,0.00807466,94538.0,94519.0,0.01250787]
[1739908132549,0.002,94536.0,94523.0,0.01250787]
[1739908132800,0.00807466,94538.0,94520.0,0.01250787]
[1739908132801,0.22621736,94533.0,94520.0,0.01250787]
[1739908133006,0.22621736,94530.0,94511.0,0.00177784]
[1739908133214,0.22621736,94522.0,94511.0,0.00177784]
[1739908133421,0.22621736,94522.0,94511.0,0.00077784]
[1739908133626,0.3242,94521.0,94511.0,0.00077784]
[1739908133830,0.55041736,94522.0,94511.0,0.00077784]
[1739908134679,5.05,94521.0,94511.0,0.00077784]
[1739908134893,0.10203915,94520.0,94511.0,0.00077784]
[1739908135107,1.5478,94519.0,94511.0,0.00077784]
[1739908135312,0.10203915,94520.0,94511.0,0.00077784]
[1739908135519,0.1194,94519.0,94511.0,0.00077784]
[1739908136138,0.55041736,94522.0,94511.0,0.00077784]
[1739908136566,0.00783068,94512.0,94511.0,0.00077784]
[1739908139183,0.22621736,94521.0,94511.0,0.00077784]
[1739908140381,0.22721736,94521.0,94511.0,0.00077784]
[1739908141689,0.00779909,94516.0,94511.0,0.00077784]
[1739908141892,5.05,94515.0,94511.0,0.00077784]
[1739908142053,4.90110965,94514.0,94511.0,0.00077784]
[1739908142254,5.122806,94513.0,94511.0,0.00077784]
[1739908142478,4.798606,94512.0,94511.0,0.00077784]
[1739908143474,5.13029813,94512.0,94511.0,0.00077784]
[1739908143677,5.13129813,94512.0,94511.0,0.00077784]
[1739908143895,0.72219403,94512.0,94511.0,0.00077784]
[1739908144110,0.34659403,94512.0,94511.0,0.00077784]
[1739908144306,0.3252,94512.0,94511.0,0.00077784]
[1739908144711,0.001,94512.0,94511.0,0.00077784]
[1739908145192,0.001,94512.0,94511.0,0.09048571]
[1739908145527,0.22621736,94530.0,94514.0,0.01250787]
[1739908145869,0.00785687,94525.0,94514.0,0.01250787]
[1739908146073,0.00785687,94525.0,94514.0,0.01240787]
[1739908146368,0.00785687,94525.0,94511.0,0.08197784]
[1739908146569,0.22621736,94521.0,94511.0,0.00477784]
[1739908146713,0.22621736,94521.0,94511.0,0.00077784]
[1739908148242,0.22621736,94521.0,94514.0,0.003]
[1739908148516,0.22621736,94521.0,94511.0,0.00077784]
[1739908148880,4.798606,94520.0,94511.0,0.00577784]
[1739908149084,4.81972324,94520.0,94511.0,0.00577784]
[1739908149282,4.798606,94519.0,94514.0,0.002]
[1739908149485,5.122806,94519.0,94511.0,0.00543864]
[1739908149685,0.00759213,94515.0,94511.0,0.00043864]
[1739908149933,4.90110965,94514.0,94511.0,0.00243864]
[1739908150168,0.07859213,94512.0,94511.0,0.00243864]
[1739908150370,4.87719813,94512.0,94511.0,0.00243864]
[1739908150670,4.87719813,94512.0,94511.0,0.00277924]
[1739908151110,4.87719813,94512.0,94511.0,0.00077924]
[1739908151374,5.45343728,94512.0,94511.0,0.00077924]
[1739908152202,5.45843728,94512.0,94511.0,0.00077924]
[1739908152412,5.45343728,94512.0,94511.0,0.00077924]
[1739908152620,5.45943728,94512.0,94511.0,0.00077924]
[1739908152823,5.51521253,94512.0,94511.0,0.00077924]
[1739908153032,5.50921253,94512.0,94511.0,0.00077924]
[1739908153755,5.52921253,94512.0,94511.0,0.00077924]
[1739908154168,5.53421253,94512.0,94511.0,0.00077924]
[1739908154438,4.01287525,94512.0,94511.0,0.00077924]
[1739908154637,3.20716738,94512.0,94511.0,0.00077924]
[1739908154843,3.21316738,94512.0,94511.0,0.00077924]
[1739908154994,3.18716738,94512.0,94511.0,0.00077924]
[1739908155216,3.20716738,94512.0,94511.0,0.00077924]
[1739908155422,3.31467103,94512.0,94511.0,0.00077924]
[1739908155648,3.30967103,94512.0,94511.0,0.00077924]
[1739908155874,3.27477103,94512.0,94511.0,0.00077924]
[1739908156113,3.25477103,94512.0,94511.0,0.00077924]
[1739908156326,2.73226738,94512.0,94511.0,0.00077924]
[1739908156498,2.75226738,94512.0,94511.0,0.00077924]
[1739908156715,2.73826738,94512.0,94511.0,0.00077924]
[1739908157064,0.35107525,94512.0,94511.0,0.00077924]
[1739908157265,0.35107525,94512.0,94511.0,2.4e-07]
[1739908157588,0.38618278,94512.0,94511.0,2.4e-07]
[1739908157790,0.38018278,94512.0,94511.0,2.4e-07]
[1739908157991,0.35007525,94512.0,94511.0,2.4e-07]
[1739908158466,0.34507525,94512.0,94511.0,2.4e-07]
[1739908158757,0.34807525,94512.0,94511.0,2.4e-07]
[1739908161345,0.003,94512.0,94511.0,2.4e-07]
[1739908162526,0.34576573,94520.0,94511.0,2.4e-07]
[1739908162776,0.003,94512.0,94511.0,2.4e-07]
[1739908163596,0.0031703,94512.0,94511.0,2.4e-07]
[1739908164389,0.0001703,94512.0,94511.0,2.4e-07]
[1739908164763,0.0031703,94512.0,94511.0,2.4e-07]
[1739908164968,0.0001703,94512.0,94511.0,2.4e-07]
[1739908165572,0.3243703,94512.0,94511.0,2.4e-07]
[1739908165769,0.35756654,94512.0,94511.0,2.4e-07]
[1739908165980,0.35703007,94512.0,94511.0,2.4e-07]
[1739908167166,0.06175923,94512.0,94511.0,2.4e-07]
[1739908168375,0.06375923,94512.0,94511.0,2.4e-07]
[1739908168578,0.06175923,94512.0,94511.0,2.4e-07]
[1739908169021,0.06375923,94512.0,94511.0,2.4e-07]
[1739908169237,0.06175923,94512.0,94511.0,2.4e-07]
[1739908170502,0.06375923,94512.0,94511.0,2.4e-07]
[1739908170839,0.06175923,94512.0,94511.0,2.4e-07]
[1739908171043,0.06375923,94512.0,94511.0,2.4e-07]
[1739908172011,0.06175923,94512.0,94511.0,2.4e-07]
[1739908175399,0.06192953,94512.0,94511.0,2.4e-07]
[1739908175843,0.06192953,94512.0,94511.0,0.07640024]
[1739908177593,0.06192953,94512.0,94511.0,0.07740024]
[1739908177797,0.06185886,94512.0,94511.0,0.07640024]
[1739908178229,0.06185886,94512.0,94511.0,0.08140024]
[1739908179068,0.06185886,94512.0,94511.0,0.07640024]
[1739908179276,0.06185886,94512.0,94511.0,0.07940024]
[1739908180637,0.06185886,94512.0,94511.0,0.07640024]
[1739908180779,0.06185886,94512.0,94511.0,0.07940024]
[1739908181245,0.06185886,94512.0,94511.0,0.07640024]
[1739908181445,0.06185886,94512.0,94511.0,0.07940024]
[1739908183288,0.06185886,94512.0,94511.0,0.14838892]
[1739908183663,0.06135886,94512.0,94511.0,0.14838892]
[1739908184243,0.06135886,94512.0,94511.0,0.13620811]
[1739908184789,0.06235886,94512.0,94511.0,0.14320811]
[1739908185092,0.06135886,94512.0,94511.0,0.13620811]
[1739908185315,0.06235886,94512.0,94511.0,0.14320811]
[1739908185465,0.06235886,94512.0,94511.0,0.13620811]
[1739908185673,0.06235886,94512.0,94511.0,0.14993472]
[1739908186450,0.0001703,94521.0,94520.0,0.03540787]
[1739908186631,0.0001703,94521.0,94520.0,0.31140787]
[1739908187278,0.0001703,94521.0,94520.0,0.47010387]
[1739908187466,0.0001703,94521.0,94520.0,0.47410387]
[1739908187668,0.09533252,94564.0,94553.0,0.0789]
[1739908187848,0.09533252,94564.0,94553.0,0.09130787]
[1739908188066,0.09533252,94564.0,94554.0,0.01240787]
[1739908188433,0.09533252,94564.0,94558.0,0.01240787]
[1739908188909,0.09577107,94564.0,94558.0,0.01240787]
[1739908189681,0.09577107,94564.0,94558.0,0.03470831]
[1739908190239,0.09577107,94564.0,94562.0,0.01240787]
[1739908190464,0.09577107,94564.0,94563.0,0.01240787]
[1739908190618,0.09577107,94564.0,94563.0,0.09130787]
[1739908190826,0.09577107,94564.0,94563.0,0.1026687]
[1739908191026,0.00043855,94564.0,94563.0,0.1026687]
[1739908191685,0.00043855,94564.0,94563.0,0.1056687]
[1739908192217,0.00043855,94564.0,94563.0,0.1106687]
[1739908192472,0.00043855,94564.0,94563.0,0.5852687]
[1739908192718,0.00043855,94564.0,94563.0,0.6553687]
[1739908193302,0.00043855,94564.0,94563.0,0.6523687]
[1739908193482,0.00043855,94564.0,94563.0,0.6473687]
[1739908193683,0.00043855,94564.0,94563.0,0.6543687]
[1739908193881,0.00043855,94564.0,94563.0,0.6473687]
[1739908194250,0.00043855,94564.0,94563.0,0.6543687]
[1739908195914,0.00043855,94564.0,94563.0,0.8129927]
[1739908196122,0.00043855,94564.0,94563.0,0.6543687]
[1739908196809,0.00043855,94564.0,94563.0,0.8129927]
[1739908197052,0.00043855,94564.0,94563.0,0.8059927]
[1739908197380,0.00043855,94564.0,94563.0,0.6543687]
[1739908197577,0.00043855,94564.0,94563.0,0.6473687]
[1739908197926,0.00043855,94564.0,94563.0,0.6543687]
[1739908198122,0.00043855,94564.0,94563.0,0.6473687]
[1739908198324,0.00043855,94564.0,94563.0,0.47000787]
[1739908199354,0.00060885,94564.0,94563.0,0.46996787]
[1739908199555,0.00060885,94564.0,94563.0,0.46296787]
[1739908199994,0.00060885,94564.0,94563.0,0.46996787]
[1739908200334,0.00060885,94564.0,94563.0,0.46296787]
[1739908200592,0.00060885,94564.0,94563.0,0.8501187]
[1739908201001,0.00060885,94564.0,94563.0,0.95262235]
[1739908201202,0.00060885,94564.0,94563.0,1.49832235]
[1739908201407,0.0001702,94572.0,94571.0,0.44917787]
[1739908201620,0.00021403,94572.0,94571.0,0.57468152]
[1739908201818,0.00021403,94572.0,94571.0,0.6068224]
[1739908202454,0.0001696,94607.0,94606.0,0.09346787]
[1739908202662,0.00030108,94607.0,94606.0,0.09346787]
[1739908203637,0.00030108,94607.0,94606.0,0.09946787]
[1739908203839,0.00030108,94607.0,94606.0,0.09346787]
[1739908204181,0.00030108,94607.0,94606.0,0.10046787]
[1739908204975,0.00030108,94607.0,94606.0,0.14768466]
[1739908205175,0.00030108,94607.0,94606.0,0.10046787]
[1739908205776,0.00030108,94607.0,94606.0,0.01236787]
[1739908205975,0.00030108,94607.0,94606.0,0.01936787]
[1739908206180,0.00030108,94607.0,94606.0,0.007]
[1739908206574,0.00030108,94607.0,94606.0,0.001891]
[1739908206777,0.00030108,94607.0,94587.0,0.01236787]
[1739908206989,0.22621736,94600.0,94587.0,0.01236787]
[1739908207197,0.0832,94599.0,94576.0,0.01236787]
[1739908207411,0.22621736,94590.0,94572.0,0.3246]
[1739908207619,0.0458,94593.0,94572.0,0.33696787]
[1739908207966,0.0077792,94595.0,94582.0,0.01236787]
[1739908208177,0.0077792,94595.0,94588.0,0.01236787]
[1739908208970,0.0077792,94595.0,94581.0,0.01236787]
[1739908209175,0.22621736,94591.0,94572.0,0.3246]
[1739908209388,0.22621736,94582.0,94572.0,0.3246]
[1739908209590,0.22621736,94582.0,94554.0,0.01236787]
[1739908209794,0.22621736,94573.0,94554.0,0.01236787]
[1739908209998,0.22621736,94570.0,94554.0,0.01236787]
[1739908210200,0.02262174,94581.0,94555.0,0.01236787]
[1739908210407,0.22621736,94580.0,94560.0,0.01236787]
[1739908211033,0.22621736,94580.0,94560.0,0.0124117]
[1739908211171,0.22621736,94570.0,94560.0,4.383e-05]
[1739908211596,0.22621736,94570.0,94563.0,0.0003404]
[1739908211976,0.00784439,94568.0,94563.0,0.0003404]
[1739908212217,0.03125057,94568.0,94563.0,0.0003404]
[1739908212420,0.00784439,94568.0,94563.0,0.0003404]
[1739908212826,3.8458,94567.0,94563.0,0.0003404]
[1739908213066,0.22621736,94550.0,94533.0,0.3246]
[1739908213227,0.22621736,94543.0,94533.0,0.00043855]
[1739908213637,0.00763213,94562.0,94533.0,0.00043855]
[1739908213638,0.22621736,94550.0,94533.0,0.00043855]
[1739908213832,0.25101128,94550.0,94533.0,0.00043855]
[1739908214034,0.22621736,94550.0,94533.0,0.00043855]
[1739908214208,0.22621736,94543.0,94533.0,0.00043855]
[1739908214635,0.00806807,94534.0,94533.0,0.00043855]
[1739908215011,0.22621736,94530.0,94510.0,0.01236787]
[1739908215386,0.00850608,94534.0,94510.0,0.01236787]
[1739908215827,0.22621736,94530.0,94510.0,0.01236787]
[1739908216325,0.26345857,94530.0,94510.0,0.01236787]
[1739908216526,0.03724121,94530.0,94510.0,0.01236787]
[1739908216907,0.22621736,94530.0,94510.0,0.01236787]
[1739908217266,0.22621736,94530.0,94509.0,0.01236787]
[1739908217543,0.22621736,94540.0,94510.0,0.01236787]
[1739908217744,3.6721,94539.0,94512.0,0.02677487]
[1739908217969,0.00809114,94521.0,94512.0,0.02677487]
[1739908218837,0.00809114,94521.0,94512.0,0.02777487]
[1739908219226,0.00809114,94521.0,94512.0,0.02677487]
[1739908219450,0.00809114,94521.0,94512.0,0.02777487]
[1739908219817,0.02343085,94520.0,94512.0,0.02777487]
[1739908220019,0.00809114,94521.0,94512.0,0.02777487]
[1739908220212,4.798606,94520.0,94512.0,0.02677487]
[1739908220658,3.322,94520.0,94512.0,0.02677487]
[1739908220980,0.00809114,94521.0,94512.0,0.02677487]
[1739908221683,0.0152409,94522.0,94512.0,0.02677487]
[1739908222177,0.02141727,94530.0,94512.0,0.02677487]
[1739908222315,0.22621736,94522.0,94512.0,0.02677487]
[1739908222515,0.22621736,94522.0,94512.0,0.02777487]
[1739908222815,0.22621736,94522.0,94512.0,0.02677487]
[1739908223252,0.22621736,94522.0,94512.0,0.02777487]
[1739908223960,0.22621736,94522.0,94512.0,0.01677605]
[1739908224458,0.2488391,94522.0,94512.0,0.01677605]
[1739908224660,0.00784002,94513.0,94512.0,0.01677605]
[1739908225190,0.00784002,94513.0,94512.0,0.01711665]
[1739908225402,0.00784002,94513.0,94512.0,0.01611665]
[1739908225851,0.00784002,94513.0,94512.0,0.01811665]
[1739908226021,0.00784002,94513.0,94512.0,0.01611665]
[1739908226397,0.00784002,94513.0,94512.0,0.01711665]
[1739908226784,0.00784002,94513.0,94500.0,4e-05]
[1739908227010,0.22621736,94510.0,94500.0,0.00017151]
[1739908227138,0.55041736,94510.0,94500.0,0.00017151]
[1739908227547,4.798606,94509.0,94500.0,0.00017151]
[1739908229545,4.802606,94509.0,94500.0,0.00017151]
[1739908229748,4.798606,94508.0,94500.0,0.00017151]
[1739908229967,0.22621736,94492.0,94472.0,0.0832]
[1739908230183,0.22621736,94481.0,94471.0,0.00047062]
[1739908230590,0.02166006,94485.0,94471.0,0.00047062]
[1739908232015,0.00780414,94473.0,94471.0,0.00047062]
[1739908232186,1.0407,94472.0,94471.0,0.00047062]
[1739908232392,1.04342927,94472.0,94471.0,0.00047062]
[1739908232567,0.00272927,94472.0,94471.0,0.00047062]
[1739908233205,4.80133527,94472.0,94471.0,0.00047062]
[1739908233372,3.41532927,94472.0,94471.0,0.00047062]
[1739908233572,1.88912927,94472.0,94471.0,0.00047062]
[1739908233823,0.00272927,94472.0,94471.0,0.00047062]
[1739908234202,0.22192927,94472.0,94471.0,0.00047062]
[1739908234432,0.25861919,94472.0,94471.0,0.00047062]
[1739908234759,0.19111919,94472.0,94452.0,0.01236787]
[1739908234961,0.03941919,94472.0,94465.0,0.00047204]
[1739908235776,0.03941919,94472.0,94449.0,0.0765]
[1739908235979,0.22621736,94460.0,94449.0,0.0765]
[1739908236386,0.00233726,94459.0,94443.0,0.0498]
[1739908236793,0.22621736,94453.0,94441.0,0.0829]
[1739908237204,0.00233553,94452.0,94441.0,0.0829]
[1739908237765,0.22621736,94460.0,94441.0,0.0829]
[1739908238172,0.00233541,94459.0,94441.0,0.0829]
[1739908239591,0.00433541,94459.0,94441.0,0.0829]
[1739908241191,0.22621736,94451.0,94441.0,0.0829]
[1739908241735,0.00233378,94450.0,94435.0,0.08459655]
[1739908242055,0.00791375,94446.0,94435.0,0.08459655]
[1739908243291,0.00791375,94446.0,94438.0,0.01236787]
[1739908245862,0.00791375,94446.0,94438.0,0.01336787]
[1739908247329,0.00791375,94446.0,94438.0,0.001]
[1739908247506,0.00233124,94445.0,94438.0,0.001]
[1739908248517,0.00233124,94445.0,94434.0,0.01236787]